fUST/lending_fUST_20250502
["ID","MTS","AMOUNT","RATE_DAILY","PERIOD"]
[359605092,1746179434395,-400.0,0.00019178,2]
[359605094,1746179434405,-469.81,0.00019178,2]
[359605096,1746179434414,-400.0,0.00019178,2]
[359605098,1746179434424,-1222.8,0.00019178,2]
[359605100,1746179434435,-163.36925799,0.00019178,2]
[359605102,1746179434445,-400.0,0.00019178,2]
[359605104,1746179434455,-400.0,0.00019178,2]
[359605106,1746179434465,-400.0,0.00019178,2]
[359605108,1746179434475,-196.05,0.00019178,2]
[359605110,1746179434486,-1168.0,0.00019178,2]
[359605112,1746179434496,-400.0,0.00019178,2]
[359605114,1746179434506,-400.0,0.00019178,2]
[359605116,1746179434516,-2071.22,0.00019178,2]
[359605118,1746179434527,-400.0,0.00019178,2]
[359605120,1746179434537,-400.76389882,0.00019178,2]
[359605122,1746179434547,-400.0,0.00019178,2]
[359605124,1746179434557,-277.85091118,0.00019178,2]
[359605126,1746179434567,-400.0,0.00019178,2]
[359605128,1746179434578,-638.81,0.00019178,2]
[359605130,1746179434589,-383.0,0.00019178,2]
[359605132,1746179434599,-400.0,0.00019178,2]
[359605134,1746179434609,-153.23139584,0.00019178,2]
[359605136,1746179434619,-557.08,0.00019178,2]
[359605138,1746179434629,-400.0,0.00019178,2]
[359605140,1746179434638,-736.75,0.00019178,2]
[359605142,1746179434648,-400.0,0.00019178,2]
[359605144,1746179434658,-4530.76,0.00019178,2]
[359605146,1746179434668,-400.0,0.00019178,2]
[359605148,1746179434678,-400.0,0.00019178,2]
[359605150,1746179434691,-400.0,0.00019178,2]
[359605152,1746179434701,-548.77,0.00019178,2]
[359605155,1746179434710,-794.45,0.00019178,2]
[359605157,1746179434720,-400.0,0.00019178,2]
[359605159,1746179434731,-402.71239459,0.00019178,2]
[359605161,1746179434741,-400.0,0.00019178,2]
[359605163,1746179434750,-170.04822705,0.00019178,2]
[359605166,1746179434773,-510.79177295,0.00019178,2]
[359605168,1746179434782,-400.0,0.00019178,2]
[359605170,1746179434791,-400.0,0.00019178,2]
[359605172,1746179434800,-400.0,0.00019178,2]
[359605174,1746179434809,-867.17,0.00019178,2]
[359605176,1746179434819,-400.0,0.00019178,2]
[359605178,1746179434828,-400.0,0.00019178,2]
[359605180,1746179434837,-400.0,0.00019178,2]
[359605182,1746179434847,-475.61370495,0.00019178,2]
[359605184,1746179434857,-400.0,0.00019178,2]
[359605186,1746179434866,-400.0,0.00019178,2]
[359605188,1746179434875,-400.0,0.00019178,2]
[359605190,1746179434884,-400.0,0.00019178,2]
[359605192,1746179434894,-400.0,0.00019178,2]
[359605194,1746179434903,-400.0,0.00019178,2]
[359605196,1746179434912,-400.0,0.00019178,2]
[359605198,1746179434922,-400.984575,0.00019178,2]
[359605201,1746179434932,-400.0,0.00019178,2]
[359605203,1746179434941,-400.0,0.00019178,2]
[359605205,1746179434951,-400.0,0.00019178,2]
[359605207,1746179434960,-400.0,0.00019178,2]
[359605209,1746179434969,-400.0,0.00019178,2]
[359605211,1746179434979,-400.0,0.00019178,2]
[359605213,1746179434988,-402.91314182,0.00019178,2]
[359605215,1746179434997,-400.0,0.00019178,2]
[359605217,1746179435007,-400.0,0.00019178,2]
[359605218,1746179435016,-400.0,0.00019178,2]
[359605220,1746179435026,-400.0,0.00019178,2]
[359605223,1746179435036,-2156.49,0.00019178,2]
[359605225,1746179435046,-400.0,0.00019178,2]
[359605227,1746179435058,-892.92,0.00019178,2]
[359605229,1746179435067,-406.97651531,0.00019178,2]
[359605231,1746179435077,-403.2792614,0.00019178,2]
[359605233,1746179435087,-400.0,0.00019178,2]
[359605235,1746179435097,-400.0,0.00019178,2]
[359605237,1746179435106,-400.0,0.00019178,2]
[359605239,1746179435116,-400.0,0.00019178,2]
[359605241,1746179435125,-400.0,0.00019178,2]
[359605243,1746179435134,-400.0,0.00019178,2]
[359605245,1746179435143,-400.0,0.00019178,2]
[359605247,1746179435152,-400.0,0.00019178,2]
[359605249,1746179435162,-400.0,0.00019178,2]
[359605251,1746179435171,-400.0,0.00019178,2]
[359605253,1746179435180,-400.0,0.00019178,2]
[359605255,1746179435190,-402.05120781,0.00019178,2]
[359605257,1746179435199,-400.0,0.00019178,2]
[359605259,1746179435208,-400.0,0.00019178,2]
[359605261,1746179435219,-400.0,0.00019178,2]
[359605263,1746179435228,-400.0,0.00019178,2]
[359605265,1746179435238,-430.9,0.00019178,2]
[359605267,1746179435247,-1143.87,0.00019178,2]
[359605269,1746179435256,-400.0,0.00019178,2]
[359605271,1746179435265,-400.0,0.00019178,2]
[359605273,1746179435274,-400.0,0.00019178,2]
[359605275,1746179435283,-400.0,0.00019178,2]
[359605277,1746179435292,-400.0,0.00019178,2]
[359605279,1746179435301,-400.0,0.00019178,2]
[359605281,1746179435311,-400.0,0.00019178,2]
[359605283,1746179435320,-1296.78,0.00019178,2]
[359605285,1746179435329,-219.29029717,0.00019178,2]
[359605287,1746179435339,-400.0,0.00019178,2]
[359605289,1746179435348,-505.1088879,0.00019178,2]
[359605291,1746179435357,-400.0,0.00019178,2]
[359605293,1746179435367,-400.0,0.00019178,2]
[359605295,1746179435376,-400.0,0.00019178,2]
[359605297,1746179435385,-400.0,0.00019178,2]
[359605299,1746179435393,-531.15995156,0.00019178,2]
[359605301,1746179435403,-400.0,0.00019178,2]
[359605303,1746179435412,-400.0,0.00019178,2]
[359605305,1746179435421,-400.0,0.00019178,2]
[359605307,1746179435431,-400.0,0.00019178,2]
[359605309,1746179435440,-233.16021819,0.00019178,2]
[359605311,1746179435449,-400.0,0.00019178,2]
[359605313,1746179435459,-400.0,0.00019178,2]
[359605315,1746179435469,-400.0,0.00019178,2]
[359605317,1746179435478,-1187.56,0.00019178,2]
[359605319,1746179435487,-400.0,0.00019178,2]
[359605321,1746179435497,-841.86,0.00019178,2]
[359605323,1746179435506,-400.0,0.00019178,2]
[359605325,1746179435516,-400.0,0.00019178,2]
[359605327,1746179435525,-400.0,0.00019178,2]
[359605329,1746179435535,-400.0,0.00019178,2]
[359605331,1746179435544,-400.0,0.00019178,2]
[359605333,1746179435554,-1087.31,0.00019178,2]
[359605335,1746179435564,-1028.23,0.00019178,2]
[359605337,1746179435573,-400.0,0.00019178,2]
[359605339,1746179435583,-400.0,0.00019178,2]
[359605341,1746179435594,-242.4967869,0.00019178,2]
[359605343,1746179435603,-400.0,0.00019178,2]
[359605345,1746179435613,-1962.7,0.00019178,2]
[359605347,1746179435622,-400.0,0.00019178,2]
[359605349,1746179435631,-401.28073085,0.00019178,2]
[359605351,1746179435643,-400.0,0.00019178,2]
[359605353,1746179435652,-400.0,0.00019178,2]
[359605356,1746179435662,-400.0,0.00019178,2]
[359605358,1746179435671,-400.0,0.00019178,2]
[359605360,1746179435684,-649.87,0.00019178,2]
[359605362,1746179435693,-993.83,0.00019178,2]
[359605364,1746179435702,-400.0,0.00019178,2]
[359605366,1746179435711,-400.0,0.00019178,2]
[359605368,1746179435721,-400.0,0.00019178,2]
[359605370,1746179435731,-346.25068839,0.00019178,2]
[359605372,1746179435741,-400.0,0.00019178,2]
[359605374,1746179435750,-400.0,0.00019178,2]
[359605376,1746179435761,-400.0,0.00019178,2]
[359605378,1746179435770,-1157.6,0.00019178,2]
[359605380,1746179435779,-400.0,0.00019178,2]
[359605382,1746179435788,-400.0,0.00019178,2]
[359605384,1746179435797,-204.3296222,0.00019178,2]
[359605386,1746179435806,-400.0,0.00019178,2]
[359605388,1746179435815,-400.0,0.00019178,2]
[359605390,1746179435824,-722.51,0.00019178,2]
[359605392,1746179435834,-400.0,0.00019178,2]
[359605394,1746179435842,-400.0,0.00019178,2]
[359605396,1746179435851,-731.85758918,0.00019178,2]
[359605580,1746179438215,-621.04241082,0.00019178,2]
[359605582,1746179438224,-400.0,0.00019178,2]
[359605584,1746179438234,-400.0,0.00019178,2]
[359605586,1746179438244,-500.59,0.00019178,2]
[359605588,1746179438254,-425.17,0.00019178,2]
[359605590,1746179438263,-479.71,0.00019178,2]
[359605592,1746179438272,-732.54,0.00019178,2]
[359605594,1746179438281,-421.97,0.00019178,2]
[359605596,1746179438291,-400.0,0.00019178,2]
[359605598,1746179438302,-400.0,0.00019178,2]
[359605600,1746179438312,-512.37,0.00019178,2]
[359605602,1746179438321,-400.0,0.00019178,2]
[359605604,1746179438331,-1014.37,0.00019178,2]
[359605606,1746179438340,-400.0,0.00019178,2]
[359605608,1746179438350,-400.0,0.00019178,2]
[359605610,1746179438359,-400.0,0.00019178,2]
[359605612,1746179438369,-400.0,0.00019178,2]
[359605614,1746179438378,-400.0,0.00019178,2]
[359605616,1746179438387,-1921.24,0.00019178,2]
[359605618,1746179438398,-400.0,0.00019178,2]
[359605620,1746179438407,-400.0,0.00019178,2]
[359605622,1746179438417,-400.0,0.00019178,2]
[359605624,1746179438428,-400.0,0.00019178,2]
[359605627,1746179438438,-400.0,0.00019178,2]
[359605629,1746179438447,-445.26710563,0.00019178,2]
[359605631,1746179438456,-679.19,0.00019178,2]
[359605633,1746179438465,-400.0,0.00019178,2]
[359605635,1746179438475,-400.0,0.00019178,2]
[359605637,1746179438484,-405.85267429,0.00019178,2]
[359605638,1746179438494,-400.0,0.00019178,2]
[359605641,1746179438503,-400.0,0.00019178,2]
[359605643,1746179438513,-405.69495885,0.00019178,2]
[359605645,1746179438522,-400.0,0.00019178,2]
[359605647,1746179438531,-228.49862426,0.00019178,2]
[359605649,1746179438541,-400.0,0.00019178,2]
[359605650,1746179438550,-400.0,0.00019178,2]
[359605652,1746179438560,-400.0,0.00019178,2]
[359605654,1746179438570,-166.00936353,0.00019178,2]
[359605656,1746179438580,-634.23,0.00019178,2]
[359605657,1746179438589,-400.0,0.00019178,2]
[359605659,1746179438599,-209.24391127,0.00019178,2]
[359605661,1746179438608,-152.17990909,0.00019178,2]
[359605662,1746179438617,-400.0,0.00019178,2]
[359605664,1746179438626,-400.0,0.00019178,2]
[359605666,1746179438636,-424.89,0.00019178,2]
[359605668,1746179438645,-400.0,0.00019178,2]
[359605669,1746179438655,-400.0,0.00019178,2]
[359605671,1746179438664,-400.0,0.00019178,2]
[359605673,1746179438674,-480.9,0.00019178,2]
[359605674,1746179438688,-400.0,0.00019178,2]
[359605675,1746179438697,-400.0,0.00019178,2]
[359605676,1746179438707,-403.14166565,0.00019178,2]
[359605677,1746179438717,-400.0,0.00019178,2]
[359605678,1746179438726,-400.0,0.00019178,2]
[359605679,1746179438736,-400.0,0.00019178,2]
[359605680,1746179438746,-400.0,0.00019178,2]
[359605681,1746179438757,-400.0,0.00019178,2]
[359605682,1746179438766,-403.08296802,0.00019178,2]
[359605683,1746179438776,-400.0,0.00019178,2]
[359605684,1746179438785,-400.0,0.00019178,2]
[359605686,1746179438795,-453.59,0.00019178,2]
[359605688,1746179438804,-400.0,0.00019178,2]
[359605689,1746179438813,-400.0,0.00019178,2]
[359605690,1746179438822,-400.0,0.00019178,2]
[359605691,1746179438832,-400.0,0.00019178,2]
[359605692,1746179438842,-400.0,0.00019178,2]
[359605693,1746179438851,-400.0,0.00019178,2]
[359605694,1746179438860,-400.0,0.00019178,2]
[359605695,1746179438869,-400.0,0.00019178,2]
[359605696,1746179438879,-400.0,0.00019178,2]
[359605697,1746179438888,-2062.32,0.00019178,2]
[359605698,1746179438897,-400.0,0.00019178,2]
[359605699,1746179438907,-400.0,0.00019178,2]
[359605700,1746179438916,-400.0,0.00019178,2]
[359605701,1746179438925,-400.0,0.00019178,2]
[359605702,1746179438935,-632.27,0.00019178,2]
[359605703,1746179438944,-400.0,0.00019178,2]
[359605704,1746179438954,-400.0,0.00019178,2]
[359605705,1746179438963,-400.0,0.00019178,2]
[359605706,1746179438973,-400.0,0.00019178,2]
[359605707,1746179438982,-400.0,0.00019178,2]
[359605708,1746179438992,-406.36524073,0.00019178,2]
[359605709,1746179439001,-400.0,0.00019178,2]
[359605710,1746179439012,-400.0,0.00019178,2]
[359605711,1746179439023,-500.0,0.00019178,2]
[359605712,1746179439032,-2309.81,0.00019178,2]
[359605713,1746179439042,-400.0,0.00019178,2]
[359605714,1746179439051,-1533.03,0.00019178,2]
[359605715,1746179439061,-400.0,0.00019178,2]
[359605716,1746179439070,-400.0,0.00019178,2]
[359605717,1746179439080,-400.0,0.00019178,2]
[359605718,1746179439090,-400.0,0.00019178,2]
[359605719,1746179439100,-400.0,0.00019178,2]
[359605720,1746179439109,-219.75931548,0.00019178,2]
[359605721,1746179439119,-400.0,0.00019178,2]
[359605722,1746179439128,-400.0,0.00019178,2]
[359605723,1746179439137,-400.0,0.00019178,2]
[359605724,1746179439147,-400.0,0.00019178,2]
[359605725,1746179439157,-400.0,0.00019178,2]
[359605726,1746179439167,-400.0,0.00019178,2]
[359605727,1746179439177,-6362.85,0.00019178,2]
[359605728,1746179439187,-500.0,0.00019178,2]
[359605729,1746179439197,-400.0,0.00019178,2]
[359605730,1746179439206,-612.65,0.00019178,2]
[359605731,1746179439216,-997.97,0.00019178,2]
[359605732,1746179439226,-400.0,0.00019178,2]
[359605733,1746179439236,-402.26,0.00019178,2]
[359605734,1746179439245,-500.81755452,0.00019178,2]
[359605735,1746179439255,-502.82,0.00019178,2]
[359605736,1746179439265,-400.0,0.00019178,2]
[359605737,1746179439274,-400.0,0.00019178,2]
[359605738,1746179439283,-400.0,0.00019178,2]
[359605739,1746179439293,-400.0,0.00019178,2]
[359605740,1746179439303,-1870.37,0.00019178,2]
[359605741,1746179439312,-1267.6,0.00019178,2]
[359605742,1746179439322,-400.0,0.00019178,2]
[359605743,1746179439333,-433.04770178,0.00019178,2]
[359605744,1746179439342,-902.54,0.00019178,2]
[359605745,1746179439353,-693.61,0.00019178,2]
[359605746,1746179439362,-400.0,0.00019178,2]
[359605747,1746179439372,-400.0,0.00019178,2]
[359605748,1746179439382,-1887.37,0.00019178,2]
[359605749,1746179439392,-400.0,0.00019178,2]
[359605750,1746179439401,-855.46,0.00019178,2]
[359605751,1746179439411,-400.0,0.00019178,2]
[359605752,1746179439421,-400.0,0.00019178,2]
[359605753,1746179439430,-400.0,0.00019178,2]
[359605754,1746179439439,-400.0,0.00019178,2]
[359605755,1746179439449,-646.72,0.00019178,2]
[359605756,1746179439458,-400.0,0.00019178,2]
[359605757,1746179439468,-816.09,0.00019178,2]
[359605758,1746179439478,-400.0,0.00019178,2]
[359605759,1746179439488,-400.0,0.00019178,2]
[359605760,1746179439497,-453.97,0.00019178,2]
[359605761,1746179439507,-400.0,0.00019178,2]
[359605762,1746179439517,-470.52,0.00019178,2]
[359605763,1746179439526,-400.0,0.00019178,2]
[359605764,1746179439535,-400.0,0.00019178,2]
[359605765,1746179439545,-929.14,0.00019178,2]
[359605766,1746179439555,-400.0,0.00019178,2]
[359605767,1746179439564,-400.0,0.00019178,2]
[359605768,1746179439575,-400.0,0.00019178,2]
[359605769,1746179439586,-400.0,0.00019178,2]
[359605770,1746179439595,-400.0,0.00019178,2]
[359605771,1746179439605,-400.0,0.00019178,2]
[359605772,1746179439615,-1000.0,0.00019178,2]
[359605773,1746179439624,-816.19,0.00019178,2]
[359605774,1746179439635,-454.04387431,0.00019178,2]
[359605775,1746179439644,-400.0,0.00019178,2]
[359605776,1746179439654,-400.0,0.00019178,2]
[359605777,1746179439663,-400.0,0.00019178,2]
[359605778,1746179439672,-400.0,0.00019178,2]
[359605779,1746179439685,-400.0,0.00019178,2]
[359605780,1746179439694,-1538.84,0.00019178,2]
[359605781,1746179439704,-400.0,0.00019178,2]
[359605782,1746179439714,-400.0,0.00019178,2]
[359605783,1746179439723,-400.0,0.00019178,2]
[359605784,1746179439733,-400.0,0.00019178,2]
[359605785,1746179439743,-827.94,0.00019178,2]
[359605786,1746179439752,-500.0,0.00019178,2]
[359605787,1746179439767,-400.0,0.00019178,2]
[359605788,1746179439776,-400.0,0.00019178,2]
[359605789,1746179439786,-400.0,0.00019178,2]
[359605790,1746179439795,-400.0,0.00019178,2]
[359605791,1746179439804,-400.0,0.00019178,2]
[359605792,1746179439814,-400.0,0.00019178,2]
[359605793,1746179439824,-2208.99,0.00019178,2]
[359605794,1746179439833,-400.0,0.00019178,2]
[359605795,1746179439843,-400.0,0.00019178,2]
[359605796,1746179439852,-400.0,0.00019178,2]
[359605797,1746179439862,-400.0,0.00019178,2]
[359605798,1746179439871,-400.0,0.00019178,2]
[359605799,1746179439880,-400.0,0.00019178,2]
[359605800,1746179439890,-400.0,0.00019178,2]
[359605801,1746179439899,-7186.07,0.00019178,2]
[359605802,1746179439909,-152.135864,0.00019178,2]
[359605803,1746179439918,-400.0,0.00019178,2]
[359605804,1746179439927,-400.0,0.00019178,2]
[359605805,1746179439937,-400.0,0.00019178,2]
[359605806,1746179439946,-400.0,0.00019178,2]
[359605807,1746179439955,-400.0,0.00019178,2]
[359605808,1746179439964,-400.0,0.00019178,2]
[359605809,1746179439974,-400.0,0.00019178,2]
[359605810,1746179439983,-400.0,0.00019178,2]
[359605811,1746179439993,-400.0,0.00019178,2]
[359605812,1746179440002,-753.8,0.00019178,2]
[359605813,1746179440012,-413.44,0.00019178,2]
[359605814,1746179440022,-400.0,0.00019178,2]
[359605815,1746179440031,-7916.23,0.00019178,2]
[359605816,1746179440041,-400.0,0.00019178,2]
[359605817,1746179440050,-400.0,0.00019178,2]
[359605818,1746179440060,-400.0,0.00019178,2]
[359605819,1746179440069,-2889.65,0.00019178,2]
[359605820,1746179440079,-400.0,0.00019178,2]
[359605821,1746179440088,-400.0,0.00019178,2]
[359605822,1746179440098,-1226.7,0.00019178,2]
[359605823,1746179440107,-2050.28,0.00019178,2]
[359605824,1746179440116,-510.4262609,0.00019178,2]
[359605825,1746179440125,-165.19649318,0.00019178,2]
[359605826,1746179440134,-400.0,0.00019178,2]
[359605827,1746179440144,-450.29,0.00019178,2]
[359605828,1746179440154,-400.0,0.00019178,2]
[359605829,1746179440163,-400.0,0.00019178,2]
[359605830,1746179440173,-400.0,0.00019178,2]
[359605831,1746179440182,-508.040052,0.00019178,2]
[359605832,1746179440192,-2388.74,0.00019178,2]
[359605833,1746179440201,-400.0,0.00019178,2]
[359605834,1746179440211,-400.0,0.00019178,2]
[359605835,1746179440221,-400.0,0.00019178,2]
[359605836,1746179440231,-400.0,0.00019178,2]
[359605837,1746179440242,-500.93099059,0.00019178,2]
[359605838,1746179440252,-695.79,0.00019178,2]
[359605839,1746179440262,-695.79,0.00019178,2]
[359605840,1746179440271,-695.79,0.00019178,2]
[359605841,1746179440281,-695.79,0.00019178,2]
[359605842,1746179440290,-695.79,0.00019178,2]
[359605843,1746179440300,-695.79,0.00019178,2]
[359605844,1746179440309,-502.34,0.00019178,2]
[359605845,1746179440319,-695.79,0.00019178,2]
[359605846,1746179440329,-1190.81,0.00019178,2]
[359605847,1746179440338,-695.79,0.00019178,2]
[359605848,1746179440348,-695.79,0.00019178,2]
[359605849,1746179440358,-441.77533336,0.00019178,2]
[359605850,1746179440367,-695.79,0.00019178,2]
[359605851,1746179440377,-695.79,0.00019178,2]
[359605852,1746179440387,-428.99,0.00019178,2]
[359605853,1746179440396,-500.0,0.00019178,2]
[359605854,1746179440406,-695.79,0.00019178,2]
[359605855,1746179440416,-695.79,0.00019178,2]
[359605856,1746179440425,-695.79,0.00019178,2]
[359605857,1746179440435,-400.0,0.00019178,2]
[359605858,1746179440444,-695.79,0.00019178,2]
[359605859,1746179440454,-400.0,0.00019178,2]
[359605860,1746179440463,-695.79,0.00019178,2]
[359605861,1746179440473,-3723.43,0.00019178,2]
[359605862,1746179440483,-400.0,0.00019178,2]
[359605863,1746179440492,-695.79,0.00019178,2]
[359605864,1746179440501,-400.0,0.00019178,2]
[359605865,1746179440511,-400.0,0.00019178,2]
[359605866,1746179440521,-400.0,0.00019178,2]
[359605867,1746179440530,-754.53,0.00019178,2]
[359605868,1746179440539,-400.0,0.00019178,2]
[359605869,1746179440549,-400.0,0.00019178,2]
[359605870,1746179440558,-400.0,0.00019178,2]
[359605871,1746179440568,-400.0,0.00019178,2]
[359605872,1746179440577,-400.0,0.00019178,2]
[359605873,1746179440587,-400.0,0.00019178,2]
[359605874,1746179440597,-400.0,0.00019178,2]
[359605875,1746179440606,-481.95,0.00019178,2]
[359605876,1746179440616,-400.0,0.00019178,2]
[359605877,1746179440626,-400.0,0.00019178,2]
[359605878,1746179440635,-2612.1,0.00019178,2]
[359605879,1746179440645,-400.0,0.00019178,2]
[359605880,1746179440655,-400.0,0.00019178,2]
[359605881,1746179440664,-405.83,0.00019178,2]
[359605882,1746179440674,-400.0,0.00019178,2]
[359605883,1746179440687,-400.0,0.00019178,2]
[359605884,1746179440696,-400.0,0.00019178,2]
[359605885,1746179440706,-207.78798204,0.00019178,2]
[359605886,1746179440716,-400.0,0.00019178,2]
[359605887,1746179440726,-823.32,0.00019178,2]
[359605888,1746179440735,-524.55410097,0.00019178,2]
[359605889,1746179440745,-400.0,0.00019178,2]
[359605890,1746179440754,-400.0,0.00019178,2]
[359605891,1746179440764,-762.44,0.00019178,2]
[359605892,1746179440775,-400.0,0.00019178,2]
[359605893,1746179440784,-891.99,0.00019178,2]
[359605894,1746179440794,-400.0,0.00019178,2]
[359605895,1746179440804,-400.0,0.00019178,2]
[359605896,1746179440813,-400.0,0.00019178,2]
[359605897,1746179440823,-449.88,0.00019178,2]
[359605898,1746179440833,-400.0,0.00019178,2]
[359605899,1746179440843,-888.08,0.00019178,2]
[359605900,1746179440853,-400.0,0.00019178,2]
[359605901,1746179440863,-2102.44,0.00019178,2]
[359605902,1746179440873,-400.0,0.00019178,2]
[359605903,1746179440883,-400.0,0.00019178,2]
[359605904,1746179440893,-247.81415339,0.00019178,2]
[359605905,1746179440902,-463.61,0.00019178,2]
[359605906,1746179440912,-400.0,0.00019178,2]
[359605907,1746179440921,-400.0,0.00019178,2]
[359605908,1746179440930,-400.0,0.00019178,2]
[359605909,1746179440940,-803.82,0.00019178,2]
[359605910,1746179440950,-400.0,0.00019178,2]
[359605911,1746179440959,-400.0,0.00019178,2]
[359605912,1746179440969,-400.0,0.00019178,2]
[359605913,1746179440978,-400.0,0.00019178,2]
[359605914,1746179440988,-449.02,0.00019178,2]
[359605916,1746179440997,-400.0,0.00019178,2]
[359605918,1746179441007,-400.0,0.00019178,2]
[359605920,1746179441016,-400.0,0.00019178,2]
[359605922,1746179441026,-400.0,0.00019178,2]
[359605924,1746179441036,-400.0,0.00019178,2]
[359605926,1746179441045,-400.0,0.00019178,2]
[359605928,1746179441055,-519.33209837,0.00019178,2]
[359605930,1746179441064,-400.0,0.00019178,2]
[359605932,1746179441074,-400.0,0.00019178,2]
[359605934,1746179441084,-2842.43,0.00019178,2]
[359605936,1746179441094,-414.76,0.00019178,2]
[359605938,1746179441103,-400.0,0.00019178,2]
[359605940,1746179441113,-400.0,0.00019178,2]
[359605942,1746179441122,-400.0,0.00019178,2]
[359605944,1746179441131,-688.51,0.00019178,2]
[359605946,1746179441141,-949.96,0.00019178,2]
[359605948,1746179441150,-402.55,0.00019178,2]
[359605950,1746179441160,-2119.06,0.00019178,2]
[359605952,1746179441169,-1426.97,0.00019178,2]
[359605954,1746179441179,-400.0,0.00019178,2]
[359605956,1746179441188,-400.0,0.00019178,2]
[359605958,1746179441198,-400.0,0.00019178,2]
[359605960,1746179441207,-400.0,0.00019178,2]
[359605962,1746179441216,-400.0,0.00019178,2]
[359605964,1746179441226,-6590.78,0.00019178,2]
[359605966,1746179441236,-400.0,0.00019178,2]
[359605968,1746179441245,-500.0,0.00019178,2]
[359605970,1746179441254,-400.0,0.00019178,2]
[359605972,1746179441263,-400.0,0.00019178,2]
[359605991,1746179441412,-468.01,0.00019178,2]
[359605994,1746179441453,-400.0,0.00019178,2]
[359605996,1746179441463,-400.0,0.00019178,2]
[359605998,1746179441472,-513.77,0.00019178,2]
[359606000,1746179441481,-400.0,0.00019178,2]
[359606002,1746179441491,-503.35645152,0.00019178,2]
[359606004,1746179441501,-400.0,0.00019178,2]
[359606006,1746179441510,-400.0,0.00019178,2]
[359606008,1746179441520,-910.67,0.00019178,2]
[359606010,1746179441529,-400.0,0.00019178,2]
[359606012,1746179441539,-400.0,0.00019178,2]
[359606014,1746179441548,-400.0,0.00019178,2]
[359606016,1746179441557,-400.0,0.00019178,2]
[359606018,1746179441566,-400.0,0.00019178,2]
[359606020,1746179441576,-400.0,0.00019178,2]
[359606022,1746179441585,-400.0,0.00019178,2]
[359606024,1746179441594,-400.0,0.00019178,2]
[359606026,1746179441604,-400.0,0.00019178,2]
[359606028,1746179441613,-1639.95,0.00019178,2]
[359606030,1746179441622,-3419.54,0.00019178,2]
[359606032,1746179441631,-3149.74,0.00019178,2]
[359606034,1746179441641,-400.0,0.00019178,2]
[359606036,1746179441650,-888.59,0.00019178,2]
[359606038,1746179441659,-519.45,0.00019178,2]
[359606040,1746179441669,-400.0,0.00019178,2]
[359606042,1746179441679,-400.0,0.00019178,2]
[359606044,1746179441690,-400.0,0.00019178,2]
[359606046,1746179441699,-400.0,0.00019178,2]
[359606048,1746179441708,-500.0,0.00019178,2]
[359606050,1746179441718,-400.0,0.00019178,2]
[359606052,1746179441729,-400.0,0.00019178,2]
[359606054,1746179441739,-980.45,0.00019178,2]